bitfinex/quotes_SOLUSD_20251226
["timestamp","ask_amount","ask_price","bid_price","bid_amount"]
[1766768430553,0.66,121.47,121.44,3.81423539]
[1766768430875,0.66,121.47,121.43,3.81423539]
[1766768431389,0.66,121.47,121.44,3.81423539]
[1766768431953,0.66,121.47,121.43,3.81423539]
[1766768432458,0.66,121.47,121.44,3.81423539]
[1766768435900,0.66,121.47,121.42,10.43767296]
[1766768436098,0.66,121.47,121.42,14.25190835]
[1766768436386,0.66,121.47,121.42,10.43767296]
[1766768436589,0.66,121.47,121.43,3.81423539]
[1766768436776,0.66,121.47,121.42,10.43767296]
[1766768437085,0.66,121.47,121.43,3.81423539]
[1766768437660,0.66,121.47,121.42,14.25190835]
[1766768438075,0.66,121.47,121.44,3.81423539]
[1766768439421,0.66,121.47,121.43,3.81423539]
[1766768439788,0.66,121.47,121.42,10.43767296]
[1766768439988,0.66,121.47,121.43,3.81423539]
[1766768440510,0.66,121.47,121.44,3.81423539]
[1766768440916,0.66,121.47,121.43,3.81423539]
[1766768441212,0.66,121.45,121.4,3.81423539]
[1766768441596,0.66,121.45,121.41,3.81423539]
[1766768443113,14.25190835,121.47,121.41,0.82365538]
[1766768443114,11.09767296,121.47,121.41,0.82365538]
[1766768443312,0.66,121.46,121.43,3.81423539]
[1766768443614,0.66,121.46,121.44,3.81423539]
[1766768443814,0.68,121.47,121.44,3.81423539]
[1766768447325,0.88,121.49,121.45,3.81423539]
[1766768447822,0.68,121.48,121.45,3.81423539]
[1766768448215,0.68,121.48,121.44,3.81423539]
[1766768448898,0.68,121.48,121.45,3.81423539]
[1766768450394,0.68,121.48,121.46,3.81423539]
[1766768450596,0.68,121.48,121.45,3.81423539]
[1766768450804,0.68,121.48,121.44,3.81423539]
[1766768451816,0.68,121.48,121.45,3.81423539]
[1766768452323,0.2,121.49,121.46,3.81423539]
[1766768452509,0.2,121.49,121.47,3.81423539]
[1766768452906,0.88,121.49,121.47,3.81423539]
[1766768453222,0.2,121.49,121.47,3.81423539]
[1766768454116,0.2,121.49,121.45,9.05721514]
[1766768454317,0.2,121.49,121.47,3.81423539]
[1766768455127,0.2,121.49,121.45,9.05721514]
[1766768455318,0.2,121.49,121.47,3.81423539]
[1766768455934,0.88,121.51,121.48,3.81423539]
[1766768456329,0.88,121.51,121.45,9.05704528]
[1766768456330,0.68,121.5,121.45,9.05704528]
[1766768456716,0.68,121.5,121.47,3.81423539]
[1766768457233,0.88,121.51,121.47,3.81423539]
[1766768457414,0.88,121.51,121.48,3.81423539]
[1766768457614,0.68,121.5,121.48,3.81423539]
[1766768457816,0.68,121.5,121.47,3.81423539]
[1766768458907,0.88,121.51,121.48,3.81423539]
[1766768459613,0.88,121.51,121.46,23.27304296]
[1766768459835,0.88,121.51,121.48,3.81423539]
[1766768460342,0.2,121.51,121.49,3.81423539]
[1766768460638,0.88,121.51,121.46,33.71058757]
[1766768460838,0.88,121.51,121.48,3.81423539]
[1766768461016,0.68,121.5,121.46,10.43767296]
[1766768461217,0.68,121.5,121.45,3.81423539]
[1766768461545,19.01423539,121.51,121.43,15.04]
[1766768461546,0.68,121.48,121.43,15.04]
[1766768461743,0.68,121.48,121.44,3.81423539]
[1766768461954,0.68,121.48,121.43,15.04]
[1766768462110,0.68,121.48,121.44,3.81423539]
[1766768462926,3.81423539,121.48,121.43,18.85423539]
[1766768463126,0.68,121.47,121.43,18.85423539]
[1766768464351,0.68,121.47,121.43,15.04]
[1766768464516,3.81423539,121.47,121.43,15.04]
[1766768464841,3.81423539,121.47,121.41,3.81423539]
[1766768464842,0.68,121.45,121.41,3.81423539]
[1766768466533,0.68,121.45,121.4,33.71464627]
[1766768466726,0.68,121.45,121.42,3.81423539]
[1766768466941,0.68,121.45,121.4,33.71464627]
[1766768467247,0.68,121.45,121.4,29.29190835]
[1766768467428,0.68,121.45,121.4,18.85423539]
[1766768467944,0.68,121.44,121.4,15.04]
[1766768468135,0.68,121.44,121.4,18.85423539]
[1766768468338,0.68,121.44,121.4,15.04]
[1766768468849,0.68,121.42,121.38,3.81423539]
[1766768469342,0.68,121.42,121.37,33.71649805]
[1766768469720,0.68,121.42,121.38,3.81423539]
[1766768470352,15.0,121.48,121.41,3.81423539]
[1766768470522,0.68,121.47,121.42,3.81423539]
[1766768470846,0.68,121.45,121.4,25.47767296]
[1766768471053,0.68,121.45,121.4,29.29190835]
[1766768472650,18.81423539,121.46,121.39,10.43767296]
[1766768472651,0.68,121.41,121.39,10.43767296]
[1766768472817,0.68,121.41,121.37,3.81423539]
[1766768473020,0.68,121.4,121.36,15.04]
[1766768473259,0.68,121.4,121.36,25.47767296]
[1766768473421,0.68,121.4,121.36,29.29190835]
[1766768473822,0.68,121.4,121.36,25.47767296]
[1766768474022,0.68,121.4,121.36,29.29190835]
[1766768474742,0.71,121.39,121.34,27.09537953]
[1766768474949,0.71,121.38,121.34,18.85423539]
[1766768475122,0.71,121.38,121.34,15.04]
[1766768475453,0.71,121.41,121.36,3.81423539]
[1766768475855,0.71,121.41,121.37,3.81423539]
[1766768476058,0.71,121.41,121.36,3.81423539]
[1766768476261,0.71,121.4,121.36,3.81423539]
[1766768476755,0.71,121.4,121.34,15.04]
[1766768476756,0.71,121.4,121.37,3.81423539]
[1766768476963,0.71,121.43,121.39,3.81423539]
[1766768477157,0.71,121.46,121.41,3.81423539]
[1766768477338,0.71,121.48,121.43,10.43767296]
[1766768477537,0.71,121.48,121.44,3.81423539]
[1766768477736,0.71,121.48,121.43,25.47767296]
[1766768477943,0.71,121.48,121.44,3.81423539]
[1766768478155,0.71,121.48,121.43,25.47767296]
[1766768478460,0.71,121.48,121.45,3.81423539]
[1766768478661,0.71,121.48,121.46,3.81423539]
[1766768479540,15.24,121.51,121.46,3.81423539]
[1766768479733,0.71,121.5,121.47,3.81423539]
[1766768479933,0.71,121.49,121.43,34.53626684]
[1766768480156,0.71,121.49,121.46,3.81423539]
[1766768481362,15.95,121.51,121.47,3.81423539]
[1766768481684,0.2,121.51,121.5,3.81423539]
[1766768481835,0.91,121.54,121.5,3.81423539]
[1766768482145,0.71,121.53,121.48,15.86318077]
[1766768482351,0.71,121.53,121.5,3.81423539]
[1766768483258,0.71,121.53,121.52,3.81423539]
[1766768483463,0.71,121.53,121.47,0.82324853]
[1766768483651,0.71,121.53,121.5,3.81423539]
[1766768484767,3.81423539,121.53,121.46,10.43767296]
[1766768484944,15.2,121.54,121.46,10.43767296]
[1766768484945,0.71,121.51,121.47,3.81423539]
[1766768485147,0.71,121.5,121.44,15.04]
[1766768485470,0.71,121.5,121.46,3.81423539]
[1766768487081,0.2,121.54,121.49,3.81423539]
[1766768487082,0.91,121.54,121.49,3.81423539]
[1766768487365,0.91,121.54,121.48,15.04]
[1766768487575,0.91,121.54,121.51,3.81423539]
[1766768487969,0.91,121.54,121.51,2.43779089]
[1766768488868,0.91,121.54,121.48,15.04]
[1766768488869,0.91,121.54,121.52,2.43779089]
[1766768489046,0.2,121.54,121.53,2.43779089]
[1766768489242,0.2,121.54,121.5,2.43779089]
[1766768489443,0.2,121.54,121.53,2.43779089]
[1766768489853,0.71,121.58,121.53,2.43779089]
[1766768490072,0.71,121.58,121.56,2.43779089]
[1766768490254,0.71,121.58,121.52,15.04]
[1766768490255,0.2,121.59,121.57,2.43779089]
[1766768490773,0.71,121.58,121.55,2.43779089]
[1766768490972,0.71,121.58,121.52,15.04]
[1766768490973,0.71,121.58,121.52,25.47767296]
[1766768491156,0.71,121.58,121.54,2.43779089]
[1766768491471,0.71,121.58,121.55,2.43779089]
[1766768491678,0.71,121.58,121.56,2.43779089]
[1766768492170,0.2,121.59,121.53,9.05117585]
[1766768492368,0.2,121.59,121.57,2.43779089]
[1766768492568,0.71,121.58,121.55,2.43779089]
[1766768493374,0.91,121.59,121.56,2.43779089]
[1766768493871,0.91,121.59,121.55,2.43779089]
[1766768494696,0.91,121.59,121.56,2.43779089]
[1766768495157,0.2,121.59,121.58,2.43779089]
[1766768495976,0.2,121.59,121.57,2.43779089]
[1766768497080,0.2,121.61,121.58,2.43779089]
[1766768497287,0.2,121.61,121.6,2.43779089]
[1766768497651,0.2,121.61,121.6,12.87546385]
[1766768497877,0.2,121.62,121.6,12.87546385]
[1766768498073,0.2,121.62,121.61,2.43779089]
[1766768498881,0.2,121.62,121.6,12.87546385]
[1766768499796,0.2,121.62,121.6,10.43767296]
[1766768500000,0.91,121.62,121.58,10.43767296]
[1766768500305,0.91,121.62,121.6,6.5211652]
[1766768500306,0.2,121.62,121.6,6.5211652]
[1766768500885,0.2,121.62,121.61,6.5211652]
[1766768501092,0.2,121.62,121.59,8.22429352]
[1766768501399,0.2,121.62,121.6,6.5211652]
[1766768502295,0.2,121.62,121.61,6.5211652]
[1766768502505,0.2,121.62,121.6,31.99883816]
[1766768502689,0.2,121.62,121.61,6.5211652]
[1766768502887,0.2,121.62,121.6,31.99883816]
[1766768504103,0.2,121.62,121.61,6.5211652]
[1766768504798,0.7,121.67,121.63,6.5211652]
[1766768504985,0.7,121.67,121.64,6.5211652]
[1766768505190,0.7,121.67,121.66,6.5211652]
[1766768505407,0.7,121.67,121.63,25.47767296]
[1766768505587,0.7,121.67,121.66,6.5211652]
[1766768505901,0.7,121.67,121.65,6.5211652]
[1766768506107,0.7,121.67,121.63,25.47767296]
[1766768506405,0.7,121.67,121.64,6.5211652]
[1766768506989,0.7,121.65,121.61,15.02]
[1766768507510,0.7,121.65,121.59,15.02]
[1766768507511,0.7,121.64,121.59,15.02]
[1766768507829,0.7,121.64,121.6,6.5211652]
[1766768508602,0.7,121.64,121.59,25.45767296]
[1766768508806,0.7,121.64,121.6,6.5211652]
[1766768509124,0.7,121.64,121.61,6.5211652]
[1766768510008,0.7,121.64,121.6,6.5211652]
[1766768510194,0.7,121.64,121.59,33.68178923]
[1766768510406,0.7,121.64,121.6,6.5211652]
[1766768510608,0.7,121.64,121.61,6.5211652]
[1766768512111,0.7,121.64,121.59,33.68178923]
[1766768512410,0.7,121.64,121.61,6.5211652]
[1766768512711,0.7,121.64,121.6,6.5211652]
[1766768513211,0.7,121.64,121.61,6.5211652]
[1766768514744,0.7,121.64,121.59,33.68198898]
[1766768514922,0.7,121.64,121.6,6.5211652]
[1766768515321,0.7,121.64,121.61,6.5211652]
[1766768519346,0.7,121.64,121.59,25.45767296]
[1766768519533,0.7,121.64,121.61,6.5211652]
[1766768520044,0.7,121.64,121.61,2.43391363]
[1766768520624,0.7,121.64,121.62,2.43391363]
[1766768520935,15.0,121.67,121.61,2.43391363]
[1766768521142,0.7,121.65,121.61,2.43391363]
[1766768522449,0.7,121.65,121.59,33.68176648]
[1766768522646,0.7,121.65,121.61,2.43391363]
[1766768522868,0.7,121.65,121.59,33.68176648]
[1766768522869,0.7,121.65,121.6,2.43391363]
[1766768523655,0.7,121.65,121.61,2.43391363]
[1766768524153,0.7,121.65,121.59,33.68176648]
[1766768524341,0.7,121.65,121.61,2.43391363]
[1766768524737,0.7,121.65,121.59,33.68176648]
[1766768524738,0.7,121.63,121.59,25.45767296]
[1766768524934,0.7,121.63,121.59,27.89158659]
[1766768525143,0.7,121.63,121.59,12.87158659]
[1766768525441,0.7,121.63,121.6,2.43391363]
[1766768525636,0.7,121.63,121.61,2.43391363]
[1766768525859,0.7,121.66,121.62,2.43391363]
[1766768526061,0.7,121.66,121.61,2.43391363]
[1766768526543,0.7,121.66,121.62,2.43391363]
[1766768526857,0.7,121.66,121.61,2.43391363]
[1766768527353,0.7,121.66,121.62,2.43391363]
[1766768527534,0.9,121.68,121.64,2.43391363]
[1766768527848,0.9,121.68,121.65,2.43391363]
[1766768528057,0.2,121.68,121.66,2.43391363]
[1766768528357,0.2,121.68,121.65,2.43391363]
[1766768528358,0.9,121.68,121.65,2.43391363]
[1766768528566,0.2,121.68,121.67,2.43391363]
[1766768528735,0.7,121.7,121.67,2.43391363]
[1766768529752,0.7,121.7,121.66,2.43391363]
[1766768529959,0.7,121.7,121.65,2.43391363]
[1766768530533,0.7,121.7,121.66,2.43391363]
[1766768530937,0.7,121.7,121.64,15.02]
[1766768530938,0.7,121.7,121.65,2.43391363]
[1766768532280,0.7,121.7,121.66,2.43391363]
[1766768532441,0.7,121.7,121.65,2.43391363]
[1766768533434,3.13391363,121.69,121.64,2.43391363]
[1766768533658,0.7,121.68,121.63,17.45391363]
[1766768533955,0.7,121.68,121.65,2.43391363]
[1766768536162,0.7,121.68,121.65,6.51491354]
[1766768536561,0.7,121.68,121.66,6.51491354]
[1766768536863,0.7,121.68,121.63,15.02]
[1766768537166,0.7,121.68,121.65,6.51491354]
[1766768537668,0.7,121.68,121.63,15.02]
[1766768537962,0.7,121.68,121.64,6.51491354]
[1766768540265,0.7,121.68,121.65,6.51491354]
[1766768540654,0.7,121.68,121.66,6.51491354]
[1766768540957,0.67,121.71,121.67,6.51491354]
[1766768541262,30.0,121.73,121.69,6.51491354]
[1766768541263,0.67,121.73,121.69,6.51491354]
[1766768542164,0.67,121.73,121.68,6.51491354]
[1766768543562,0.67,121.72,121.67,15.02]
[1766768543869,0.67,121.72,121.68,6.51491354]
[1766768544768,0.67,121.72,121.69,6.51491354]
[1766768544963,0.67,121.72,121.7,6.51491354]
[1766768545149,21.51491354,121.75,121.7,6.51491354]
[1766768545150,0.67,121.74,121.7,6.51491354]
[1766768545675,0.67,121.74,121.71,6.51491354]
[1766768546048,0.67,121.74,121.7,6.51491354]
[1766768548083,0.67,121.74,121.7,10.57829182]
[1766768548980,11.24829182,121.73,121.66,19.47909334]
[1766768549160,0.67,121.71,121.68,10.57829182]
[1766768549468,0.67,121.7,121.65,10.57829182]
[1766768550448,25.45767296,121.73,121.67,10.57829182]
[1766768550757,0.67,121.72,121.68,10.57829182]
[1766768551178,0.67,121.72,121.69,10.57829182]
[1766768553478,0.67,121.72,121.67,10.43767296]
[1766768553661,0.67,121.72,121.69,10.57829182]
[1766768555178,0.67,121.72,121.7,10.57829182]
[1766768557168,0.67,121.72,121.69,10.57829182]
[1766768557361,0.67,121.72,121.67,25.59829182]
[1766768557969,0.67,121.72,121.68,10.57829182]
[1766768560473,0.67,121.72,121.69,10.57829182]
[1766768560671,0.67,121.72,121.7,10.57829182]
[1766768561075,0.67,121.72,121.69,10.57829182]
[1766768562306,0.67,121.72,121.67,8.21886131]
[1766768562478,0.67,121.72,121.69,10.57829182]
[1766768563796,0.67,121.72,121.67,8.21886131]
[1766768564093,0.67,121.72,121.69,10.57829182]
[1766768564873,0.67,121.72,121.68,10.57829182]
[1766768565074,0.67,121.72,121.69,10.57829182]
[1766768565581,0.67,121.72,121.67,25.59829182]
[1766768565971,0.67,121.72,121.68,10.57829182]
[1766768567102,0.67,121.72,121.67,15.02]
[1766768567305,0.67,121.72,121.68,10.57829182]
[1766768569391,0.67,121.72,121.69,10.57829182]
[1766768570909,0.67,121.72,121.68,25.59829182]
[1766768571201,0.67,121.72,121.69,10.57829182]
[1766768572114,0.68,121.71,121.66,10.43767296]
[1766768572286,0.68,121.71,121.67,10.57829182]
[1766768573614,25.57829182,121.7,121.66,15.02]
[1766768573816,0.68,121.69,121.65,10.57829182]
[1766768574806,0.68,121.69,121.64,25.45767296]
[1766768575004,0.68,121.69,121.65,10.57829182]
[1766768576296,0.68,121.69,121.66,10.57829182]
[1766768577334,0.68,121.69,121.64,25.45767296]
[1766768577505,0.68,121.69,121.66,10.57829182]
[1766768577895,0.68,121.69,121.66,3.79980793]
[1766768578296,0.68,121.69,121.64,25.45767296]
[1766768578497,0.68,121.69,121.64,3.79980793]
[1766768578805,0.68,121.67,121.62,3.79980793]
[1766768579619,0.68,121.67,121.63,3.79980793]
[1766768580006,0.68,121.67,121.64,3.79980793]
[1766768581022,0.68,121.67,121.63,3.79980793]
[1766768582216,15.7,121.69,121.65,3.79980793]
[1766768582404,18.79980793,121.69,121.63,3.79980793]
[1766768582606,0.68,121.68,121.6,33.68111229]
[1766768582804,0.68,121.67,121.62,3.79980793]
[1766768583405,0.68,121.67,121.61,8.22290049]
[1766768583620,0.68,121.67,121.63,3.79980793]
[1766768583920,0.68,121.66,121.6,25.45767296]
[1766768584104,0.68,121.66,121.62,3.79980793]
[1766768584914,0.68,121.66,121.6,25.45767296]
[1766768585111,0.68,121.66,121.62,3.79980793]
[1766768587028,0.68,121.66,121.6,33.68124039]
[1766768587329,0.68,121.66,121.62,3.79980793]
[1766768588632,0.68,121.68,121.63,3.79980793]
[1766768588834,0.68,121.68,121.64,3.79980793]
[1766768589224,15.7,121.69,121.65,3.79980793]
[1766768590021,0.68,121.69,121.65,3.79980793]
[1766768592152,10.43767296,121.7,121.68,3.79980793]
[1766768592444,0.68,121.75,121.69,3.79980793]
[1766768592626,0.68,121.74,121.68,10.43767296]
[1766768592830,0.68,121.73,121.68,10.43767296]
[1766768593020,0.68,121.75,121.71,3.79980793]
[1766768594230,0.68,121.75,121.72,3.79980793]
[1766768594422,0.68,121.75,121.71,3.79980793]
[1766768594644,0.68,121.75,121.72,3.79980793]
[1766768595651,0.68,121.75,121.71,3.79980793]
[1766768596838,0.68,121.75,121.69,8.21737261]
[1766768597051,0.68,121.75,121.71,3.79980793]
[1766768597642,0.68,121.75,121.68,35.6048734]
[1766768597835,0.68,121.75,121.72,3.79980793]
[1766768598340,0.68,121.75,121.73,3.79980793]
[1766768599236,0.68,121.75,121.7,8.21692686]
[1766768599442,0.68,121.75,121.72,3.79980793]
[1766768604240,0.68,121.75,121.73,3.79980793]
[1766768604445,0.67,121.76,121.73,3.79980793]
[1766768605961,0.67,121.76,121.72,3.79980793]
[1766768607560,0.67,121.76,121.73,3.79980793]
[1766768608898,0.67,121.76,121.7,23.23683176]
[1766768609072,0.67,121.76,121.7,15.02]
[1766768609374,0.67,121.76,121.72,3.79980793]
[1766768609546,0.67,121.76,121.73,3.79980793]
[1766768609946,0.67,121.76,121.74,2.428793]
[1766768610152,0.67,121.76,121.72,2.428793]
[1766768610651,0.67,121.76,121.73,2.428793]
[1766768610853,0.67,121.76,121.72,2.428793]
[1766768613784,0.67,121.75,121.69,0.82176021]
[1766768613980,2.428793,121.75,121.7,2.428793]
[1766768614183,0.67,121.72,121.68,2.428793]
[1766768614862,0.67,121.72,121.69,2.428793]
[1766768617291,0.67,121.74,121.71,2.428793]
[1766768617464,0.67,121.75,121.72,2.428793]
[1766768617663,2.628793,121.77,121.72,2.428793]
[1766768617664,0.67,121.76,121.72,2.428793]
[1766768619588,0.67,121.76,121.7,18.65439136]
[1766768619790,0.67,121.75,121.71,2.428793]
[1766768621183,0.67,121.75,121.72,2.428793]
[1766768621777,0.67,121.75,121.71,2.428793]
[1766768622503,0.67,121.75,121.68,36.10459102]
[1766768622662,0.67,121.75,121.71,2.428793]
[1766768623485,0.67,121.75,121.68,36.10459102]
[1766768623486,0.67,121.75,121.72,2.428793]
[1766768623665,0.67,121.75,121.73,1.708793]
[1766768623868,0.67,121.75,121.72,2.428793]
[1766768626796,0.67,121.75,121.71,2.428793]
[1766768627203,0.67,121.75,121.72,2.428793]
[1766768628878,0.67,121.75,121.71,2.428793]
[1766768632687,0.67,121.75,121.72,2.428793]
[1766768636089,0.7,121.76,121.73,0.66]
[1766768636296,0.7,121.76,121.73,3.088793]
[1766768636791,0.7,121.76,121.73,2.428793]
[1766768638713,0.7,121.76,121.72,3.088793]
[1766768639615,0.7,121.76,121.72,0.66]
[1766768639799,0.7,121.76,121.72,3.088793]
[1766768641914,0.7,121.76,121.7,0.66]
[1766768642209,0.7,121.75,121.71,2.428793]
[1766768642407,0.7,121.75,121.71,3.088793]
[1766768642889,0.7,121.75,121.71,2.428793]
[1766768643287,0.7,121.75,121.7,3.088793]
[1766768643491,0.7,121.74,121.7,2.428793]
[1766768643915,0.7,121.74,121.7,3.088793]
[1766768645405,0.7,121.74,121.7,2.428793]
[1766768645719,0.7,121.74,121.71,0.66]
[1766768646398,0.7,121.75,121.71,3.088793]
[1766768647708,0.7,121.75,121.71,0.66]
[1766768648400,0.7,121.75,121.71,3.088793]
[1766768648596,0.7,121.76,121.72,0.66]
[1766768649227,0.7,121.75,121.71,3.088793]
[1766768650125,0.7,121.72,121.68,3.088793]
[1766768650315,0.7,121.71,121.68,0.66]
[1766768650902,2.428793,121.69,121.64,0.66]
[1766768651105,15.0,121.7,121.63,0.66]
[1766768651106,0.7,121.67,121.63,0.66]
[1766768651623,0.7,121.67,121.63,3.088793]
[1766768651825,0.7,121.69,121.64,2.428793]
[1766768652129,0.7,121.69,121.65,3.088793]
[1766768653101,0.7,121.69,121.65,0.66]
[1766768655415,0.7,121.69,121.65,3.088793]
[1766768655915,0.7,121.69,121.65,0.66]
[1766768658712,0.7,121.69,121.64,2.428793]
[1766768658912,2.428793,121.69,121.64,2.428793]
[1766768659120,0.69,121.68,121.64,2.428793]
[1766768659522,0.69,121.68,121.64,3.118793]
[1766768661133,0.69,121.68,121.64,0.69]
[1766768661336,0.69,121.68,121.64,3.118793]
[1766768661833,15.71,121.7,121.66,0.69]
[1766768662032,15.71,121.7,121.66,3.118793]
[1766768662849,15.02,121.7,121.67,2.428793]
[1766768663137,0.69,121.73,121.69,0.69]
[1766768663851,118.5,121.76,121.69,0.69]
[1766768663852,0.69,121.76,121.72,2.428793]
[1766768664045,0.69,121.76,121.71,3.118793]
[1766768664348,0.69,121.76,121.72,2.428793]
[1766768665532,0.69,121.76,121.71,3.118793]
[1766768665747,0.69,121.76,121.72,2.428793]
[1766768666051,0.69,121.76,121.72,0.69]
[1766768666231,0.69,121.76,121.72,3.118793]
[1766768666431,0.69,121.76,121.73,3.118793]
[1766768666729,0.69,121.76,121.72,3.118793]
[1766768668148,0.69,121.74,121.7,2.428793]
[1766768668647,0.69,121.74,121.7,0.69]
[1766768668949,0.69,121.74,121.7,3.118793]
[1766768671955,0.69,121.74,121.7,4.48702451]
[1766768672557,0.69,121.74,121.71,3.79702451]
[1766768676160,0.69,121.74,121.7,4.48702451]
[1766768677451,0.69,121.74,121.7,4.51702451]
[1766768681074,0.69,121.74,121.68,15.84182774]
[1766768681368,0.7,121.73,121.68,4.51702451]
[1766768682149,0.7,121.73,121.68,3.79702451]
[1766768682750,0.7,121.73,121.68,4.51702451]
[1766768683865,3.79702451,121.73,121.67,4.51702451]
[1766768684071,0.72,121.7,121.66,3.79702451]
[1766768684554,0.72,121.7,121.66,4.50702451]
[1766768688473,0.72,121.7,121.66,0.71]
[1766768688656,0.72,121.7,121.66,4.50702451]
[1766768690763,104.19,121.72,121.68,0.66]
[1766768690963,104.19,121.72,121.69,0.66]
[1766768691176,0.69,121.72,121.69,0.66]
[1766768691673,0.69,121.72,121.68,3.79702451]
[1766768691874,0.69,121.72,121.68,4.45702451]
[1766768692067,0.69,121.72,121.68,0.66]
[1766768692270,0.69,121.72,121.68,4.45702451]
[1766768694872,15.71,121.73,121.69,4.45702451]
[1766768695673,0.69,121.73,121.69,4.45702451]
[1766768698579,0.69,121.73,121.69,0.66]
[1766768698773,0.69,121.73,121.69,4.45702451]
[1766768700073,10.43767296,121.75,121.71,4.45702451]
[1766768700074,0.69,121.74,121.71,4.45702451]
[1766768700464,0.69,121.74,121.71,0.66]
[1766768700665,10.43767296,121.75,121.71,0.66]
[1766768700859,122.31702451,121.76,121.72,0.66]
[1766768700860,118.52,121.76,121.72,0.66]
[1766768701177,0.69,121.75,121.72,0.66]
[1766768701372,4.48702451,121.74,121.7,0.66]
[1766768701578,0.69,121.73,121.7,0.66]
[1766768705592,0.69,121.74,121.7,0.66]
[1766768705982,0.69,121.74,121.71,0.66]
[1766768707897,0.69,121.74,121.7,4.45702451]
[1766768708399,0.69,121.74,121.71,0.66]
[1766768711093,11.12767296,121.75,121.72,0.66]
[1766768711292,0.69,121.75,121.72,0.66]
[1766768711492,26.08181487,121.77,121.73,4.45702451]
[1766768711699,26.08181487,121.77,121.74,0.66]
[1766768712003,25.39181487,121.77,121.74,4.45702451]
[1766768712201,25.39181487,121.77,121.74,0.66]
[1766768712777,26.08181487,121.77,121.7,24.05832578]
[1766768712997,0.69,121.76,121.73,0.66]
[1766768713700,26.08181487,121.77,121.73,4.45702451]
[1766768715204,26.08181487,121.77,121.74,4.51702451]
[1766768715584,26.08181487,121.77,121.74,0.72]
[1766768716489,26.08181487,121.77,121.74,4.51702451]
[1766768717005,26.08181487,121.77,121.74,0.72]
[1766768720116,0.72,121.76,121.72,0.72]
[1766768720292,0.72,121.75,121.72,0.72]
[1766768720492,0.72,121.75,121.72,4.51702451]
[1766768722012,0.72,121.75,121.72,0.72]
[1766768722215,0.72,121.75,121.72,4.51702451]
[1766768725814,0.72,121.75,121.69,10.43767296]
[1766768726020,0.72,121.73,121.69,0.72]
[1766768726404,0.72,121.73,121.69,4.51702451]
[1766768729320,0.72,121.73,121.7,4.51702451]
[1766768729507,0.72,121.73,121.69,4.51702451]
[1766768732023,0.72,121.73,121.69,3.15063084]
[1766768732740,15.02,121.76,121.71,2.43063084]
[1766768732914,0.72,121.75,121.72,0.72]
[1766768733227,0.72,121.75,121.71,3.15063084]
[1766768733722,0.72,121.75,121.72,0.72]
[1766768734017,0.72,121.75,121.71,3.15063084]
[1766768734734,0.72,121.75,121.72,3.15063084]
[1766768734905,0.72,121.75,121.72,2.43063084]
[1766768735809,0.72,121.75,121.72,3.15063084]
[1766768737222,15.74,121.76,121.73,0.72]
[1766768737526,15.02,121.76,121.74,2.43063084]
[1766768737741,25.39181487,121.77,121.75,0.72]
[1766768737911,26.11181487,121.77,121.74,3.15063084]
[1766768739445,0.72,121.76,121.73,3.15063084]
[1766768739644,26.11181487,121.77,121.74,0.72]
[1766768742062,26.11181487,121.77,121.74,3.15063084]